bitfinex/quotes_SOLUSD_20260222
["timestamp","ask_amount","ask_price","bid_price","bid_amount"]
[1771777265242,0.51623939,83.439,83.407,11.98940136]
[1771777268351,0.51623939,83.437,83.401,11.9902639]
[1771777272049,0.51623939,83.437,83.41,3.0917303]
[1771777273148,11.98523419,83.436,83.41,3.0917303]
[1771777273337,0.51623939,83.435,83.41,3.0917303]
[1771777274147,0.51623939,83.435,83.41,15.08062642]
[1771777277654,0.51623939,83.435,83.4,3.0917303]
[1771777278454,0.51623939,83.435,83.41,3.0917303]
[1771777280262,0.51623939,83.435,83.411,11.98882641]
[1771777289265,0.51623939,83.435,83.386,41.97347276]
[1771777289470,0.51623939,83.433,83.4,3.0917303]
[1771777290089,0.51623939,83.433,83.41,3.0917303]
[1771777293604,0.51623939,83.433,83.41,15.08065265]
[1771777295393,0.51623939,83.427,83.387,11.99227697]
[1771777295691,0.51623939,83.417,83.37,3.0917303]
[1771777295893,0.51623939,83.415,83.38,3.0917303]
[1771777297390,0.51623939,83.413,83.38,3.0917303]
[1771777300875,0.51623939,83.411,83.38,3.0917303]
[1771777302696,3.0917303,83.41,83.379,11.99328737]
[1771777302893,0.51623939,83.409,83.379,11.99328737]
[1771777304087,0.51623939,83.407,83.371,11.99457845]
[1771777305876,0.51623939,83.399,83.366,11.99519942]
[1771777306181,0.51623939,83.397,83.361,11.99601732]
[1771777309606,11.99098278,83.396,83.361,11.99601732]
[1771777309795,0.51623939,83.395,83.361,11.99601732]
[1771777311398,0.51623939,83.409,83.38,3.0917303]
[1771777311601,0.51623939,83.409,83.39,3.0917303]
[1771777311798,0.51623939,83.408,83.39,3.0917303]
[1771777312585,0.51623939,83.413,83.4,3.0917303]
[1771777313105,0.51623939,83.413,83.39,3.0917303]
[1771777316290,0.51623939,83.413,83.391,11.99170174]
[1771777316508,104.7,83.442,83.401,11.9902639]
[1771777316509,0.51623939,83.424,83.401,11.9902639]
[1771777318491,0.51623939,83.422,83.4,3.09312341]
[1771777318696,0.51623939,83.422,83.39,3.09312341]
[1771777319899,0.51623939,83.422,83.363,105.65753494]
[1771777319900,3.6093628,83.42,83.38,3.09312341]
[1771777320108,0.51623939,83.419,83.38,3.09312341]
[1771777320921,0.51623939,83.417,83.381,11.99313992]
[1771777321118,0.51623939,83.417,83.377,11.9936887]
[1771777321411,0.51623939,83.409,83.377,11.9936887]
[1771777322516,0.51623939,83.409,83.38,3.09312341]
[1771777324615,0.51623939,83.407,83.38,3.09312341]
[1771777326533,0.51623939,83.405,83.38,3.09312341]
[1771777328015,0.51623939,83.405,83.377,11.9936887]
[1771777328216,0.51623939,83.399,83.36,3.09312341]
[1771777328808,0.51623939,83.397,83.361,11.99601732]
[1771777331017,12.27501836,83.398,83.361,11.99601732]
[1771777331018,0.51623939,83.395,83.361,11.99601732]
[1771777332002,0.51623939,83.393,83.35,3.09312341]
[1771777334716,0.51623939,83.391,83.351,11.99745653]
[1771777335534,0.51623939,83.391,83.351,41.99109787]
[1771777337833,0.51623939,83.391,83.36,3.09312341]
[1771777340117,0.51623939,83.391,83.352,3.69383402]
[1771777340320,0.51623939,83.391,83.356,11.99671773]
[1771777340834,0.51623939,83.391,83.36,3.09312341]
[1771777341931,0.51623939,83.409,83.37,3.09312341]
[1771777342140,0.51623939,83.407,83.371,11.99457845]
[1771777342931,0.51623939,83.407,83.38,3.09312341]
[1771777343635,0.51623939,83.407,83.371,11.99457845]
[1771777346339,3.09312341,83.4,83.356,3.69383402]
[1771777346634,0.51623939,83.404,83.37,3.09312341]
[1771777346830,0.51623939,83.404,83.371,11.99457845]
[1771777350944,0.51623939,83.402,83.371,11.99457845]
[1771777353242,0.51623939,83.402,83.363,29.98918555]
[1771777353940,0.51623939,83.402,83.37,3.09312341]
[1771777355846,0.51623939,83.402,83.371,11.99457845]
[1771777357047,0.51623939,83.407,83.38,3.09312341]
[1771777361359,0.51623939,83.405,83.37,3.09312341]
[1771777361649,0.51623939,83.405,83.361,29.9900433]
[1771777363255,0.51623939,83.405,83.371,11.99457845]
[1771777366355,0.51623939,83.405,83.371,41.98102457]
[1771777370158,0.51623939,83.403,83.37,3.09312341]
[1771777371550,0.51623939,83.401,83.371,11.99457845]
[1771777377271,0.51623939,83.399,83.361,11.99601732]
[1771777377762,0.51623939,83.399,83.37,3.09312341]
[1771777379262,0.51623939,83.399,83.371,11.99457845]
[1771777380662,0.28432314,83.396,83.327,60.00389989]
[1771777380863,0.51623939,83.387,83.35,3.09560784]
[1771777381760,0.51623939,83.385,83.351,11.99745653]
[1771777382446,0.51623939,83.391,83.37,3.09560784]
[1771777382842,0.51623939,83.406,83.37,3.09560784]
[1771777385067,0.51623939,83.404,83.351,29.99364134]
[1771777385367,0.51623939,83.404,83.37,3.09560784]
[1771777386371,0.51623939,83.402,83.371,11.99457845]
[1771777389172,0.51623939,83.402,83.38,3.09560784]
[1771777389971,0.51623939,83.4,83.38,3.09560784]
[1771777391588,0.51623939,83.41,83.38,3.09560784]
[1771777391761,0.51623939,83.41,83.39,3.09560784]
[1771777394472,0.51623939,83.41,83.381,11.99313992]
[1771777395076,0.51623939,83.41,83.381,11.33614076]
[1771777395275,0.51623939,83.41,83.39,3.09560784]
[1771777402880,0.51623939,83.415,83.39,3.09560784]
[1771777406082,11.98839523,83.414,83.39,3.09560784]
[1771777406381,0.51623939,83.413,83.39,3.09560784]
[1771777408270,0.51623939,83.413,83.38,3.09560784]
[1771777408886,0.51623939,83.413,83.39,3.09560784]
[1771777411205,0.51623939,83.413,83.38,3.09560784]
[1771777411408,0.51623939,83.411,83.38,3.09560784]
[1771777412582,0.51623939,83.411,83.381,11.99313992]
[1771777421493,12.27329328,83.41,83.381,11.99313992]
[1771777421701,0.51623939,83.407,83.376,11.99372942]
[1771777424616,0.51623939,83.405,83.371,11.99457845]
[1771777425323,0.51623939,83.405,83.38,3.09560784]
[1771777427000,0.51623939,83.405,83.38,15.0887895]
[1771777430295,0.51623939,83.405,83.39,3.09560784]
[1771777432121,0.51623939,83.405,83.39,15.08737573]
[1771777437322,0.51623939,83.405,83.364,3.69383402]
[1771777437520,0.51623939,83.405,83.39,3.09560784]
[1771777441330,0.51623939,83.405,83.39,3.09426039]
[1771777446643,0.51623939,83.405,83.391,11.99170174]
[1771777447133,0.51623939,83.405,83.39,3.09426039]
[1771777447327,0.51623939,83.405,83.386,11.99233155]
[1771777448242,0.51623939,83.405,83.381,11.99313992]
[1771777448418,0.51623939,83.405,83.39,3.09426039]
[1771777450935,0.51623939,83.414,83.391,11.99170174]
[1771777451433,12.27085028,83.427,83.391,41.97095609]
[1771777451634,0.51623939,83.426,83.391,41.97095609]
[1771777452140,0.51623939,83.426,83.4,3.09426039]
[1771777452932,0.51623939,83.426,83.391,41.97095609]
[1771777454539,11.9868145,83.425,83.391,41.97095609]
[1771777454745,0.51623939,83.424,83.391,41.97095609]
[1771777461846,0.51623939,83.424,83.4,3.09426039]
[1771777463244,0.51623939,83.424,83.401,11.9902639]
[1771777466739,0.51623939,83.424,83.41,3.09426039]
[1771777467549,0.51623939,83.424,83.365,0.28432314]
[1771777467737,0.51623939,83.424,83.41,3.09426039]
[1771777468253,0.51623939,83.424,83.4,3.09426039]
[1771777469164,11.98710187,83.423,83.378,29.98360258]
[1771777469454,0.51623939,83.407,83.39,3.09426039]
[1771777469642,0.51623939,83.418,83.4,3.09426039]
[1771777469953,11.98710187,83.423,83.4,3.09426039]
[1771777469954,0.51623939,83.416,83.4,3.09426039]
[1771777471242,0.51623939,83.414,83.4,3.09426039]
[1771777474055,0.51623939,83.409,83.4,3.09426039]
[1771777475868,0.51623939,83.409,83.384,0.46082122]
[1771777476054,0.51623939,83.409,83.39,3.09426039]
[1771777477156,0.50010008,83.407,83.39,3.09426039]
[1771777477363,0.50010008,83.407,83.38,3.55508161]
[1771777477662,0.50010008,83.407,83.381,0.46082122]
[1771777477843,0.50010008,83.407,83.39,3.09426039]
[1771777479763,0.46274395,83.397,83.359,0.47198772]
[1771777479959,11.98954511,83.406,83.359,0.47198772]
[1771777479960,0.46274395,83.387,83.359,0.47198772]
[1771777480353,0.46274395,83.387,83.37,3.09426039]
[1771777481344,0.28432314,83.378,83.347,0.47198772]
[1771777481546,0.46274395,83.367,83.34,3.09426039]
[1771777481748,3.09426039,83.38,83.34,3.09426039]
[1771777481749,0.46274395,83.365,83.34,3.09426039]
[1771777483571,0.46274395,83.357,83.333,0.47198772]
[1771777484269,0.46274395,83.357,83.33,3.09426039]
[1771777484569,0.46274395,83.347,83.322,0.47198772]
[1771777486271,0.46274395,83.343,83.32,3.19426039]
[1771777486475,1e-08,83.346,83.32,0.1]
[1771777487370,3.09426039,83.35,83.32,0.1]
[1771777488188,29.99385574,83.351,83.32,0.1]
[1771777488366,0.46274395,83.345,83.32,0.1]
[1771777488570,0.46274395,83.343,83.32,0.1]
[1771777488791,0.28432314,83.35,83.32,0.1]
[1771777489492,0.28432314,83.348,83.32,0.1]
[1771777490372,0.28432314,83.348,83.32,3.19426039]
[1771777490781,0.1202379,83.345,83.32,0.57198772]
[1771777490981,0.1202379,83.345,83.32,3.66624811]
[1771777491184,0.1202379,83.345,83.321,0.47198772]
[1771777492471,29.99385574,83.351,83.321,0.47198772]
[1771777494475,0.28432314,83.348,83.321,0.47198772]
[1771777495678,0.0237299,83.347,83.321,0.47198772]
[1771777496993,0.0277818,83.346,83.321,0.47198772]
[1771777501496,0.0441393,83.352,83.321,0.47198772]
[1771777501677,0.0441393,83.352,83.32,3.20028253]
[1771777501678,11.9969004,83.355,83.331,0.51911487]
[1771777502077,0.04811193,83.354,83.331,0.51911487]
[1771777502294,0.04811193,83.348,83.32,0.1]
[1771777503485,0.05203893,83.346,83.32,0.1]
[1771777503693,0.05203893,83.346,83.32,0.61911487]
[1771777505903,0.06355136,83.345,83.32,0.61911487]
[1771777507083,0.06730102,83.352,83.33,3.10028253]
[1771777507280,11.99745653,83.351,83.331,0.51911487]
[1771777507800,0.07100761,83.367,83.341,0.51911487]
[1771777509484,0.07100761,83.367,83.331,0.51911487]
[1771777510091,0.0818739,83.358,83.331,0.51911487]
[1771777510402,0.0818739,83.348,83.321,0.51911487]
[1771777511993,11.99788837,83.348,83.321,0.51911487]
[1771777512204,0.08891166,83.346,83.321,0.51911487]
[1771777512587,0.08891166,83.346,83.32,0.1]
[1771777513213,0.09237004,83.345,83.32,0.1]
[1771777513706,0.09237004,83.345,83.32,0.61911487]
[1771777514502,11.99817627,83.346,83.321,0.55896116]
[1771777516710,0.10907511,83.362,83.321,0.55896116]
[1771777516913,11.99601732,83.361,83.331,0.55896116]
[1771777517796,0.10907511,83.362,83.331,0.55896116]
[1771777521100,0.26392311,83.359,83.321,0.55896116]
[1771777521300,0.12176154,83.358,83.321,0.55896116]
[1771777522215,41.98253525,83.368,83.322,0.55896116]
[1771777522519,0.1248426,83.373,83.333,0.55896116]
[1771777527934,0.1248426,83.373,83.341,0.55896116]
[1771777531038,0.15102745,83.358,83.331,0.55896116]
[1771777532825,0.15648574,83.368,83.341,0.55896116]
[1771777538439,0.17212396,83.378,83.341,0.55896116]
[1771777540139,0.17710041,83.368,83.341,0.55896116]
[1771777541536,0.17954585,83.366,83.341,0.55896116]
[1771777542435,0.17954585,83.366,83.32,0.1]
[1771777542436,0.1819632,83.362,83.321,0.58461048]
[1771777542735,0.1819632,83.348,83.321,0.58461048]
[1771777543635,11.99803232,83.347,83.321,0.58461048]
[1771777543932,0.18435278,83.346,83.321,0.58461048]
[1771777546935,0.19363979,83.344,83.321,0.58461048]
[1771777550133,11.99860816,83.343,83.321,0.58461048]
[1771777551239,0.20250742,83.358,83.331,0.58461048]
[1771777552435,11.99659296,83.357,83.331,0.58461048]
[1771777553140,12.20338287,83.357,83.331,0.58461048]
[1771777554539,0.20889434,83.356,83.331,0.58461048]
[1771777557747,12.2119445,83.355,83.331,0.58461048]
[1771777558626,0.21707309,83.354,83.331,0.58461048]
[1771777560848,0.22296385,83.352,83.321,0.58461048]
[1771777561947,11.99745653,83.351,83.321,0.58461048]
[1771777562155,12.22233903,83.351,83.321,0.58461048]
[1771777562454,12.22233903,83.351,83.323,0.58461048]
[1771777562455,11.99745653,83.351,83.323,0.58461048]
[1771777562755,12.22233903,83.351,83.323,0.58461048]
[1771777564538,0.22865395,83.35,83.323,0.58461048]
[1771777567369,11.99774442,83.349,83.323,0.58461048]
[1771777568261,12.23545441,83.349,83.331,0.59586103]
[1771777568461,11.99774442,83.349,83.331,0.59586103]
[1771777569759,0.24118846,83.353,83.331,0.59586103]
[1771777572164,11.9973126,83.352,83.331,0.59586103]
[1771777572354,0.24458747,83.351,83.331,0.59586103]
[1771777573267,11.9973126,83.352,83.331,0.59586103]
[1771777573567,0.24625776,83.351,83.331,0.59586103]
[1771777574868,3.0996441,83.36,83.331,0.59586103]
[1771777574869,0.25115438,83.349,83.331,0.59586103]
[1771777575853,0.25115438,83.349,83.32,3.1996441]
[1771777575854,0.64219092,83.348,83.32,0.1]
[1771777577172,0.28432314,83.349,83.32,0.1]
[1771777577173,0.64219092,83.346,83.32,0.1]
[1771777577969,0.64219092,83.344,83.32,0.6911489]
[1771777578974,0.64219092,83.342,83.32,0.6911489]
[1771777582174,11.9988961,83.341,83.32,0.6911489]
[1771777582377,0.64219092,83.34,83.32,0.6911489]
[1771777584879,11.99918405,83.339,83.32,0.6911489]
[1771777585578,11.99918405,83.339,83.321,0.5911489]
[1771777591482,0.64219092,83.339,83.321,0.5911489]
[1771777592580,0.64219092,83.337,83.291,0.5911489]
[1771777592782,0.64219092,83.329,83.301,0.5911489]
[1771777593894,0.64219092,83.329,83.28,0.1]
[1771777594181,0.64219092,83.319,83.28,3.1996441]
[1771777594383,0.28432314,83.31,83.281,0.5911489]
[1771777594567,0.64219092,83.309,83.281,0.5911489]
[1771777595073,0.64219092,83.307,83.281,0.5911489]
[1771777595377,0.64219092,83.307,83.28,0.1]
[1771777596869,12.0036491,83.308,83.27,3.1996441]
[1771777596870,0.64219092,83.299,83.27,3.1996441]
[1771777597086,0.64219092,83.299,83.27,0.1]
[1771777597381,0.64219092,83.299,83.27,3.1996441]
[1771777597382,0.64219092,83.289,83.27,3.1996441]
[1771777598178,0.64219092,83.289,83.246,12.01247761]
[1771777598376,0.64219092,83.289,83.26,3.1996441]
[1771777599081,0.64219092,83.289,83.24,3.1996441]
[1771777599082,0.28432314,83.282,83.25,3.1996441]
[1771777599282,0.64359938,83.269,83.25,0.1]
[1771777600292,5.36086188,83.293,83.241,0.59929975]
[1771777600293,0.64359938,83.287,83.261,0.59929975]
[1771777600470,0.64359938,83.315,83.28,3.0996441]
[1771777600806,0.64359938,83.315,83.29,3.0996441]
[1771777600984,0.64359938,83.315,83.291,0.59929975]
[1771777601170,0.64359938,83.309,83.291,0.59929975]
[1771777602798,0.64359938,83.307,83.29,3.0996441]
[1771777604076,12.0022084,83.318,83.301,0.59929975]
[1771777604282,12.0022084,83.318,83.31,3.69894385]
[1771777604992,0.28432314,83.333,83.311,0.59929975]
[1771777606074,0.64359938,83.332,83.311,0.59929975]
[1771777606275,0.64359938,83.33,83.311,0.59929975]
[1771777609203,0.64359938,83.328,83.311,0.59929975]
[1771777611386,12.00091206,83.327,83.311,0.59929975]
[1771777611590,0.64359938,83.326,83.31,3.0996441]
[1771777611983,0.64359938,83.322,83.263,3.69383402]
[1771777612185,0.64359938,83.322,83.29,3.0996441]
[1771777613091,0.64359938,83.314,83.28,3.0996441]
[1771777613404,0.64359938,83.302,83.27,3.0996441]
[1771777613987,0.64359938,83.302,83.27,3.69894385]
[1771777614498,0.64359938,83.3,83.27,3.69894385]
[1771777615408,0.64359938,83.3,83.28,3.0996441]
[1771777615635,0.64359938,83.32,83.291,0.59929975]
[1771777615909,0.64359938,83.319,83.3,3.0996441]
[1771777616796,0.64359938,83.317,83.3,3.0996441]
[1771777620117,12.64609589,83.316,83.3,3.0996441]
[1771777620514,0.64359938,83.315,83.3,3.0996441]
[1771777621211,0.64359938,83.315,83.3,3.10172128]
[1771777621415,0.64359938,83.315,83.295,0.59929975]
[1771777621614,0.64359938,83.315,83.3,3.10172128]
[1771777622200,12.00278464,83.314,83.3,3.70102103]
[1771777623301,0.28432314,83.327,83.301,0.59929975]
[1771777623528,0.28432314,83.327,83.31,3.10172128]
[1771777623812,0.64359938,83.324,83.31,3.10172128]
[1771777624704,0.64359938,83.322,83.31,3.10172128]
[1771777625106,0.64359938,83.322,83.281,12.00754073]
[1771777625311,0.64359938,83.322,83.3,3.10172128]
[1771777627515,12.00177626,83.321,83.294,0.59929975]
[1771777627826,0.64359938,83.32,83.3,3.10172128]
[1771777628421,0.64359938,83.32,83.3,3.74730818]
[1771777628807,0.66102327,83.319,83.3,3.74730818]
[1771777631628,12.66323167,83.318,83.3,3.74730818]
[1771777631808,0.66102327,83.317,83.3,3.74730818]
[1771777632508,0.66102327,83.317,83.3,3.10172128]
[1771777633908,12.00249651,83.316,83.3,3.74730818]
[1771777635726,12.00249651,83.316,83.301,0.66466084]
[1771777636522,11.99947202,83.337,83.312,0.66466084]
[1771777636723,11.99947202,83.337,83.32,3.10172128]
[1771777637030,11.99947202,83.337,83.321,0.66466084]
[1771777638431,12.67611452,83.337,83.321,0.66466084]
[1771777639126,0.6766425,83.336,83.32,3.10172128]
[1771777640215,11.99976,83.335,83.31,3.10172128]
[1771777640418,0.6766425,83.334,83.31,3.10172128]
[1771777641532,0.6766425,83.332,83.31,3.10172128]
[1771777643430,12.000336,83.331,83.31,3.10172128]
[1771777643630,0.6766425,83.33,83.31,3.10172128]
[1771777644034,12.000336,83.331,83.31,3.10172128]
[1771777644731,12.67642202,83.335,83.31,3.10172128]
[1771777650028,12.000048,83.333,83.31,3.10172128]
[1771777653969,0.6766425,83.333,83.31,3.10172128]
[1771777658050,0.6766425,83.331,83.31,3.10172128]
[1771777661154,0.67355192,83.329,83.31,3.10172128]
[1771777668848,0.67355192,83.333,83.31,3.10172128]
[1771777669551,0.67355192,83.333,83.28,3.10172128]
[1771777669552,0.67355192,83.344,83.32,3.10172128]
[1771777669770,0.67355192,83.362,83.33,3.10172128]
[1771777674362,0.67355192,83.36,83.33,3.10172128]
[1771777675653,101.18156492,83.36,83.33,3.10172128]
[1771777675852,0.67355192,83.359,83.33,3.10172128]
[1771777676653,0.67355192,83.357,83.33,3.10172128]
[1771777681467,11.99673688,83.356,83.33,3.10172128]
[1771777681670,0.67355192,83.355,83.33,3.10172128]
[1771777682545,11.99702473,83.354,83.33,3.10172128]
[1771777682758,11.99702473,83.354,83.34,3.10172128]
[1771777683465,0.67355192,83.353,83.34,3.09866275]
[1771777687378,11.9973126,83.352,83.34,3.09866275]
[1771777688258,0.67355192,83.366,83.34,3.09866275]
[1771777688461,0.67355192,83.366,83.35,3.09866275]
[1771777689954,11.99513744,83.368,83.35,3.09866275]
[1771777690151,60.67355192,83.37,83.36,3.09866275]
[1771777690661,11.99486619,83.369,83.35,3.09866275]
[1771777691461,11.99486619,83.369,83.36,3.09866275]
[1771777693067,11.99429071,83.373,83.36,3.09866275]
[1771777693371,11.99357962,83.378,83.36,3.09866275]
[1771777694179,101.18156492,83.379,83.36,3.09866275]
[1771777694369,0.67355192,83.398,83.37,3.09866275]
[1771777695476,11.99069522,83.398,83.37,3.09866275]
[1771777695787,0.67355192,83.395,83.329,3.97815716]
[1771777696084,0.67355192,83.395,83.36,3.09866275]
[1771777696781,0.67355192,83.395,83.37,3.09866275]
[1771777699390,0.67355192,83.393,83.37,3.09866275]
[1771777699886,0.67355192,83.393,83.36,3.09866275]
[1771777702187,0.67355192,83.391,83.36,3.09866275]
[1771777703594,0.67355192,83.389,83.36,3.09866275]
[1771777703797,0.67355192,83.389,83.37,3.09866275]
[1771777704984,0.67355192,83.387,83.37,3.09866275]
[1771777705178,11.99213316,83.388,83.38,3.09866275]
[1771777705377,11.99213316,83.388,83.37,3.09866275]
[1771777706189,0.67355192,83.397,83.36,3.09866275]
[1771777709693,0.67355192,83.395,83.37,3.09866275]
[1771777710815,143.15101115,83.394,83.37,3.09866275]
[1771777711106,0.67355192,83.393,83.37,3.09866275]
[1771777711684,0.67355192,83.393,83.36,3.09866275]
[1771777716612,143.15201771,83.392,83.36,3.09866275]
[1771777716792,0.67355192,83.391,83.36,3.09866275]
[1771777721726,0.67355192,83.369,83.33,3.09866275]
[1771777722325,0.67355192,83.367,83.321,12.00177626]
[1771777723219,0.67355192,83.358,83.321,12.00177626]
[1771777724319,0.67355192,83.356,83.33,3.09866275]
[1771777725431,11.99688081,83.355,83.33,3.09866275]
[1771777726101,0.67355192,83.354,83.33,3.09866275]
[1771777728638,11.99716866,83.353,83.33,3.09866275]
[1771777728804,0.67355192,83.352,83.33,3.09866275]
[1771777730428,11.99745653,83.351,83.33,3.09866275]
[1771777734229,0.67355192,83.351,83.33,3.09866275]
[1771777736614,11.99558562,83.364,83.33,3.09866275]
[1771777736929,0.67355192,83.363,83.33,3.09866275]
[1771777740109,0.67355192,83.361,83.33,3.09866275]
[1771777742632,0.67355192,83.359,83.33,3.09866275]
[1771777743219,0.67355192,83.359,83.33,3.0988588]
[1771777745935,11.99644905,83.358,83.33,3.0988588]
[1771777746109,0.67355192,83.357,83.33,3.0988588]
[1771777752032,0.67355192,83.355,83.33,3.0988588]
[1771777752924,11.99702473,83.354,83.33,3.0988588]
[1771777753127,0.67355192,83.353,83.325,12.00111267]
[1771777754831,0.67355192,83.351,83.321,12.00177626]
[1771777756825,0.67355192,83.347,83.31,3.0988588]
[1771777757028,0.67355192,83.347,83.311,12.00321686]
[1771777758617,0.67355192,83.345,83.311,12.00321686]
[1771777760525,11.99846419,83.344,83.311,12.00321686]
[1771777760726,0.67355192,83.343,83.311,12.00321686]
[1771777762935,0.67355192,83.341,83.311,12.00321686]
[1771777763921,0.67355192,83.339,83.311,12.00321686]
[1771777765936,0.67355192,83.337,83.31,3.0988588]
[1771777769841,0.67355192,83.337,83.311,12.00321686]
[1771777771133,0.67355192,83.336,83.301,30.01164451]
[1771777771341,0.67355192,83.336,83.31,3.0988588]
[1771777773137,0.67355192,83.336,83.311,12.00321686]
[1771777780732,0.67355192,83.334,83.3,3.0988588]
[1771777781647,0.67355192,83.334,83.29,3.0988588]
[1771777781949,0.67355192,83.332,83.291,12.00609909]
[1771777783553,0.67355192,83.332,83.3,3.0988588]
[1771777784242,0.67355192,83.33,83.301,12.0046578]
[1771777787577,12.00062403,83.329,83.301,12.0046578]
[1771777787874,0.67355192,83.328,83.301,12.0046578]
[1771777790073,0.67355192,83.328,83.31,3.0988588]
[1771777792270,0.67355192,83.33,83.3,3.0988588]
[1771777793061,0.67355192,83.33,83.291,12.00596648]
[1771777793062,0.67355192,83.329,83.291,12.00596648]
[1771777793979,12.00076804,83.328,83.291,12.00596648]
[1771777794174,0.67355192,83.327,83.291,12.00596648]
[1771777794780,0.67355192,83.327,83.3,3.0988588]
[1771777796879,0.67355192,83.325,83.29,3.0988588]
[1771777798676,0.67355192,83.323,83.281,12.00754073]
[1771777798899,0.67355192,83.309,83.26,3.0988588]
[1771777799188,0.67355192,83.299,83.241,60.06601041]
[1771777799356,0.67355192,83.299,83.254,30.02835075]
[1771777799559,12.00249651,83.316,83.254,30.02835075]
[1771777799560,0.67355192,83.315,83.28,3.0988588]
[1771777801464,30.00588115,83.317,83.281,12.00754073]
[1771777801465,0.67355192,83.313,83.281,12.00754073]
[1771777801879,0.67355192,83.313,83.29,3.0988588]
[1771777804464,0.67355192,83.318,83.3,3.0988588]
[1771777805280,0.67355192,83.318,83.29,3.10163697]
[1771777807884,0.67355192,83.318,83.291,12.00609909]
[1771777808086,0.67355192,83.323,83.3,3.10163697]
[1771777813270,0.67355192,83.321,83.3,3.10163697]
[1771777814289,0.67355192,83.321,83.295,12.0054552]
[1771777814479,0.67355192,83.321,83.3,3.10163697]
[1771777815974,3.10163697,83.34,83.28,3.10163697]
[1771777815975,0.67355192,83.339,83.31,3.10163697]
[1771777817985,0.67355192,83.337,83.31,3.10163697]
[1771777819300,0.67355192,83.335,83.31,3.10163697]
[1771777820191,0.67355192,83.34,83.32,3.10163697]
[1771777820373,0.67355192,83.339,83.32,3.10163697]
[1771777820576,0.67355192,83.339,83.311,12.00321686]
[1771777822596,0.67355192,83.339,83.32,3.10163697]
[1771777825482,101.18156492,83.341,83.33,3.10163697]
[1771777825688,101.18156492,83.341,83.321,12.00177626]
[1771777825689,101.85511684,83.341,83.321,12.00177626]
[1771777826011,0.67355192,83.34,83.32,3.10163697]
[1771777828701,0.67355192,83.353,83.321,12.00177626]
[1771777828903,0.67355192,83.353,83.33,3.10163697]
[1771777829292,0.67355192,83.353,83.34,3.10163697]
[1771777829605,0.67355192,83.353,83.321,12.00177626]
[1771777831133,0.67355192,83.351,83.321,12.00177626]
[1771777835534,0.67355192,83.349,83.321,12.00177626]
[1771777836508,60.0,83.36,83.321,42.00621691]
[1771777836712,60.67355192,83.36,83.34,3.10163697]
[1771777837228,0.67355192,83.359,83.35,3.10163697]
[1771777837415,0.67355192,83.359,83.34,3.10163697]
[1771777838428,0.67355192,83.359,83.35,3.10163697]
[1771777838634,12.66925338,83.364,83.35,3.10163697]
[1771777838836,0.67355192,83.363,83.35,3.10163697]
[1771777839130,0.67355192,83.371,83.35,3.10163697]
[1771777840821,0.67355192,83.369,83.335,11.99966994]
[1771777841034,0.67355192,83.369,83.34,3.10163697]
[1771777842035,0.67355192,83.369,83.335,11.99966994]
[1771777843539,0.67355192,83.367,83.331,12.000336]
[1771777845537,0.67355192,83.365,83.331,12.000336]
[1771777846539,0.67355192,83.359,83.31,30.00818668]
[1771777846844,0.67355192,83.359,83.295,60.02702433]
[1771777846845,0.67355192,83.359,83.32,3.10163697]
[1771777847535,0.67355192,83.359,83.33,3.10163697]
[1771777847732,0.67355192,83.357,83.33,15.10200902]
[1771777854739,0.67355192,83.357,83.34,3.10163697]
[1771777860843,11.99673688,83.356,83.317,0.63064735]
[1771777861047,0.65037969,83.355,83.317,0.63064735]
[1771777861851,0.65037969,83.355,83.321,0.63064735]
[1771777862031,11.99673688,83.356,83.34,3.10163697]
[1771777862237,12.64711657,83.356,83.34,3.10163697]
[1771777862649,12.64711657,83.356,83.34,3.73228432]
[1771777863030,0.65037969,83.363,83.35,3.10163697]
[1771777863235,11.99385914,83.376,83.351,0.6611186]
[1771777865052,41.97196272,83.389,83.351,0.6611186]
[1771777865249,0.0231025,83.388,83.351,0.6611186]
[1771777866349,41.97196272,83.389,83.32,3.0971789]
[1771777866350,11.99198935,83.389,83.36,3.0971789]
[1771777866559,11.99198935,83.389,83.352,11.9973126]
[1771777866560,11.99198935,83.389,83.371,0.6611186]
[1771777868355,0.02309134,83.391,83.371,0.6611186]
[1771777870555,41.96696789,83.399,83.371,0.6611186]
[1771777875352,41.96696789,83.399,83.36,3.0971789]
[1771777875353,41.96696789,83.399,83.361,0.6611186]
[1771777876742,3.0971789,83.39,83.356,0.6611186]
[1771777876956,0.28432314,83.389,83.356,0.6611186]
[1771777880776,41.97246606,83.388,83.356,0.6611186]
[1771777885467,41.97246606,83.388,83.351,0.6611186]
[1771777886456,143.15403098,83.388,83.351,0.6611186]
[1771777898088,143.15403098,83.388,83.341,0.6611186]
[1771777898089,0.28432314,83.369,83.341,0.6611186]
[1771777898291,3.0971789,83.35,83.312,0.6611186]
[1771777899698,0.28432314,83.359,83.321,0.6611186]
[1771777900388,41.98757167,83.358,83.321,0.6611186]
[1771777903290,11.99644905,83.358,83.322,12.00163222]
[1771777903489,11.99644905,83.358,83.323,0.6611186]
[1771777905898,11.99644905,83.358,83.324,12.00134415]
[1771777906097,11.99644905,83.358,83.325,0.6611186]
[1771777909402,29.98768462,83.368,83.331,0.6611186]
[1771777917486,29.98768462,83.368,83.333,0.6611186]